bitfinex/quotes_SOLUSD_20220207
["timestamp","ask_amount","ask_price","bid_price","bid_amount"]
[1644222785296,46.73461414,116.62,116.51,35.70937125]
[1644222785903,59.60551414,116.62,116.51,35.70937125]
[1644222786096,60.79008057,116.62,116.51,35.70937125]
[1644222786295,60.79008057,116.62,116.51,41.70937125]
[1644222787099,60.79008057,116.62,116.51,41.95937125]
[1644222787296,60.79008057,116.62,116.52,22.8679]
[1644222787497,60.79008057,116.62,116.53,39.74788798]
[1644222787696,60.79008057,116.62,116.53,39.99788798]
[1644222790098,66.79008057,116.62,116.53,39.99788798]
[1644222790698,67.04008057,116.62,116.53,39.99788798]
[1644222791102,67.04008057,116.62,116.53,0.25]
[1644222791300,67.04008057,116.62,116.52,23.1179]
[1644222791500,67.04008057,116.62,116.52,22.8679]
[1644222792125,67.04008057,116.62,116.53,43.21274488]
[1644222792722,67.04008057,116.62,116.53,43.46274488]
[1644222793126,1.18456643,116.61,116.53,43.46274488]
[1644222793424,38.9571307,116.6,116.53,43.46274488]
[1644222793824,44.9571307,116.6,116.53,43.46274488]
[1644222794826,45.2071307,116.6,116.53,45.17137076]
[1644222795026,14.26353239,116.62,116.53,45.17137076]
[1644222795227,7.39263239,116.62,116.53,51.17137076]
[1644222795526,0.20806596,116.62,116.53,63.45137076]
[1644222796028,36.49539949,116.62,116.53,63.45137076]
[1644222796428,0.20806596,116.62,116.53,63.45137076]
[1644222796628,0.20806596,116.62,116.54,23.3329]
[1644222796830,0.20806596,116.62,116.55,12.28]
[1644222797029,0.20806596,116.62,116.55,13.98862588]
[1644222797235,0.20806596,116.62,116.55,14.23862588]
[1644222797428,0.20806596,116.62,116.56,34.95075893]
[1644222797629,0.20806596,116.62,116.55,0.25]
[1644222797831,0.20806596,116.62,116.53,35.0386]
[1644222798030,1.39263239,116.62,116.53,22.7586]
[1644222798231,1.64263239,116.62,116.53,22.7586]
[1644222798431,0.45806596,116.62,116.53,22.7586]
[1644222798629,46.76986416,116.62,116.53,66.53174814]
[1644222799029,59.64076416,116.62,116.53,66.53174814]
[1644222799230,59.64076416,116.62,116.53,66.78174814]
[1644222799429,59.64076416,116.62,116.53,66.53174814]
[1644222799630,60.82533059,116.62,116.53,22.7586]
[1644222799832,60.82533059,116.62,116.52,36.0166]
[1644222800032,60.82533059,116.62,116.49,37.1646]
[1644222800033,1.18456643,116.61,116.49,37.1646]
[1644222800235,12.8746,116.58,116.49,24.8846]
[1644222800634,35.84504717,116.57,116.49,24.8846]
[1644222801042,41.84504717,116.57,116.5,48.06243397]
[1644222801232,41.84504717,116.57,116.5,48.31243397]
[1644222801632,41.84504717,116.57,116.5,0.25]
[1644222801832,12.8765,116.56,116.49,24.8846]
[1644222802036,12.8765,116.56,116.45,1.22154313]
[1644222802437,12.8765,116.56,116.43,1.22154313]
[1644222802438,14.06106643,116.56,116.43,1.22154313]
[1644222802633,48.69236629,116.54,116.42,13.50154313]
[1644222802835,48.69236629,116.54,116.42,37.02025512]
[1644222803035,2.1056109,116.53,116.42,37.02025512]
[1644222803235,45.20856859,116.52,116.42,37.02025512]
[1644222803435,45.20856859,116.52,116.41,46.63654313]
[1644222803836,95.1056109,116.51,116.4,1.62896233]
[1644222804035,0.31201782,116.48,116.4,0.4074192]
[1644222804236,12.28,116.47,116.4,0.4074192]
[1644222804435,45.95516988,116.46,116.4,0.4074192]
[1644222804634,47.46636085,116.44,116.4,0.4074192]
[1644222805635,14.9987109,116.44,116.4,1.92e-05]
[1644222807440,12.8931,116.44,116.4,1.92e-05]
[1644222807939,18.8931,116.44,116.4,1.92e-05]
[1644222809139,19.1431,116.44,116.4,1.92e-05]
[1644222809842,18.8931,116.44,116.4,1.92e-05]
[1644222810040,6.0,116.44,116.4,1.92e-05]
[1644222810539,16.573,116.47,116.4,1.92e-05]
[1644222810942,33.95595443,116.47,116.4,1.92e-05]
[1644222811140,8.97449875,116.46,116.4,1.92e-05]
[1644222811941,12.8904,116.44,116.4,1.92e-05]
[1644222813543,13.1404,116.44,116.4,1.92e-05]
[1644222814141,19.1404,116.44,116.4,1.92e-05]
[1644222814542,18.8904,116.44,116.4,1.92e-05]
[1644222815547,6.0,116.44,116.4,1.92e-05]
[1644222815943,21.86249875,116.46,116.4,1.92e-05]
[1644222817745,28.11249875,116.46,116.4,1.92e-05]
[1644222817946,19.138,116.46,116.4,1.92e-05]
[1644222819548,6.0,116.46,116.4,1.92e-05]
[1644222819948,12.8857,116.48,116.4,1.92e-05]
[1644222820149,13.2662172,116.49,116.4,1.92e-05]
[1644222820349,2.1056109,116.47,116.4,1.92e-05]
[1644222820949,2.3556109,116.47,116.4,1.92e-05]
[1644222821351,12.8877,116.46,116.4,1.92e-05]
[1644222821552,14.9933109,116.46,116.4,1.92e-05]
[1644222821754,12.8877,116.46,116.4,1.92e-05]
[1644222822152,14.9933109,116.46,116.4,1.92e-05]
[1644222822753,12.28,116.45,116.4,1.92e-05]
[1644222822959,12.893,116.44,116.4,1.92e-05]
[1644222823157,56.87294281,116.44,116.4,1.92e-05]
[1644222823555,2.1056109,116.43,116.4,1.92e-05]
[1644222823756,6.06439994,116.42,116.4,1.92e-05]
[1644222824156,6.31439994,116.42,116.4,1.92e-05]
[1644222824356,6.06439994,116.42,116.4,1.92e-05]
[1644222828379,12.8878,116.46,116.4,1.92e-05]
[1644222829178,13.1378,116.46,116.4,1.92e-05]
[1644222831580,19.1378,116.46,116.4,1.92e-05]
[1644222835382,6.0,116.46,116.4,1.92e-05]
[1644222835582,12.8857,116.48,116.4,1.92e-05]
[1644222836189,52.27602453,116.47,116.4,1.92e-05]
[1644222836885,54.38163543,116.47,116.4,1.92e-05]
[1644222837084,14.9931109,116.47,116.4,1.92e-05]
[1644222837485,12.8875,116.47,116.4,1.92e-05]
[1644222839290,18.8875,116.47,116.4,1.92e-05]
[1644222839688,19.1375,116.47,116.4,1.92e-05]
[1644222840289,55.02381827,116.47,116.4,1.92e-05]
[1644222840489,57.12942917,116.47,116.4,1.92e-05]
[1644222840892,22.42767733,116.47,116.4,1.92e-05]
[1644222841293,22.17767733,116.47,116.4,1.92e-05]
[1644222841692,20.07206643,116.47,116.4,1.92e-05]
[1644222841894,18.8875,116.47,116.4,1.92e-05]
[1644222843295,19.1375,116.47,116.4,1.92e-05]
[1644222845098,6.25,116.47,116.4,1.92e-05]
[1644222845598,0.25,116.47,116.4,1.92e-05]
[1644222845797,71.5801841,116.49,116.4,1.92e-05]
[1644222846000,25.09306643,116.49,116.4,1.92e-05]
[1644222846201,1.18456643,116.49,116.4,1.92e-05]
[1644222846398,1.18456643,116.5,116.41,13.99693219]
[1644222846601,5.47756643,116.52,116.41,71.59693219]
[1644222846800,4.293,116.52,116.42,1.71693219]
[1644222846999,4.293,116.52,116.43,12.28]
[1644222847199,4.293,116.52,116.43,62.16571283]
[1644222847399,37.73253739,116.51,116.44,1.71693219]
[1644222847599,37.73253739,116.51,116.45,52.70143799]
[1644222847800,37.73253739,116.51,116.45,52.95143799]
[1644222848002,37.73253739,116.51,116.45,58.95143799]
[1644222848201,37.73253739,116.51,116.45,12.53]
[1644222848403,37.73253739,116.51,116.42,2.93847532]
[1644222848602,43.73253739,116.51,116.41,8.839]
[1644222848801,3.29017733,116.5,116.41,8.839]
[1644222849001,1.18456643,116.49,116.41,8.839]
[1644222849202,29.61974308,116.49,116.41,8.839]
[1644222849401,2.1056109,116.48,116.41,8.839]
[1644222849600,15.57017733,116.48,116.41,8.839]
[1644222850002,2.1056109,116.47,116.41,8.839]
[1644222850201,28.45927733,116.47,116.41,8.839]
[1644222850402,44.07488859,116.46,116.41,8.839]
[1644222850604,46.18049949,116.46,116.41,8.839]
[1644222851625,44.32488859,116.46,116.41,8.839]
[1644222851805,55.2436,116.48,116.42,40.21215411]
[1644222852003,1.18456643,116.49,116.42,40.21215411]
[1644222852203,1.18456643,116.5,116.42,40.21215411]
[1644222852603,7.18456643,116.5,116.42,40.21215411]
[1644222852803,41.0368463,116.49,116.42,40.21215411]
[1644222853006,53.9213463,116.49,116.42,40.21215411]
[1644222854006,53.9213463,116.49,116.41,8.839]
[1644222854204,54.1713463,116.49,116.41,9.089]
[1644222854608,12.8845,116.49,116.41,9.089]
[1644222854806,1.18456643,116.51,116.41,60.689]
[1644222855007,4.293,116.52,116.42,12.28]
[1644222855208,4.293,116.52,116.42,20.24693219]
[1644222855413,4.293,116.52,116.42,18.53]
[1644222855607,41.58242263,116.51,116.43,47.34424471]
[1644222855807,41.58242263,116.51,116.43,59.87424471]
[1644222856007,41.58242263,116.51,116.43,0.25]
[1644222856207,41.58242263,116.51,116.42,23.3607]
[1644222856208,49.93803353,116.51,116.42,23.3607]
[1644222856411,51.12259996,116.51,116.42,23.3607]
[1644222856809,51.12259996,116.51,116.41,8.839]
[1644222857409,1.18456643,116.5,116.41,8.839]
[1644222857609,43.44140674,116.49,116.41,8.839]
[1644222858415,45.54701764,116.49,116.41,8.839]
[1644222858613,45.54701764,116.49,116.4,1.92e-05]
[1644222859151,46.73158407,116.49,116.4,1.92e-05]
[1644222859314,59.61658407,116.49,116.4,38.21876668]
[1644222859515,56.32640674,116.49,116.4,38.21876668]
[1644222859712,56.32640674,116.49,116.4,38.46876668]
[1644222861318,62.32640674,116.49,116.4,38.46876668]
[1644222862117,56.32640674,116.49,116.4,38.46876668]
[1644222862314,14.06676643,116.51,116.4,52.47125666]
[1644222862515,5.47756643,116.52,116.4,78.66769979]
[1644222862714,11.47756643,116.52,116.4,81.72366668]
[1644222862918,7.58317733,116.52,116.4,81.72366668]
[1644222863114,13.58317733,116.52,116.4,81.72366668]
[1644222863316,41.21442985,116.51,116.4,81.72366668]
[1644222863514,55.28209628,116.51,116.4,81.72366668]
[1644222863716,2.1056109,116.5,116.4,81.72366668]
[1644222863917,39.92703359,116.49,116.4,81.72366668]
[1644222864321,39.92703359,116.49,116.4,24.9749192]
[1644222864521,12.8855,116.48,116.4,24.9749192]
[1644222864921,20.07006643,116.48,116.4,24.9749192]
[1644222865121,20.9911109,116.48,116.4,24.9749192]
[1644222865322,44.85254035,116.47,116.4,1.92e-05]
[1644222866946,12.8883,116.46,116.4,1.92e-05]
[1644222867147,43.80878875,116.45,116.4,1.92e-05]
[1644222867546,12.8883,116.46,116.4,1.92e-05]
[1644222867747,6.0,116.48,116.4,1.92e-05]
[1644222868447,12.8857,116.48,116.4,1.92e-05]
[1644222868646,41.79744067,116.47,116.4,38.46007872]
[1644222868847,41.79744067,116.47,116.4,38.71007872]
[1644222870950,1.18456643,116.51,116.41,14.00248998]
[1644222871149,1.18456643,116.51,116.41,71.60248998]
[1644222871351,4.293,116.52,116.42,1.72248998]
[1644222871549,4.293,116.52,116.42,14.00248998]
[1644222871749,41.83143932,116.51,116.42,65.21810393]
[1644222872250,49.01600575,116.51,116.42,12.28]
[1644222872450,51.12161665,116.51,116.42,12.28]
[1644222872849,51.37161665,116.51,116.42,12.28]
[1644222873049,64.25451665,116.51,116.42,12.28]
[1644222873451,64.25451665,116.51,116.43,8.74237195]
[1644222873651,56.14890575,116.51,116.43,8.74237195]
[1644222873950,54.71433932,116.51,116.43,8.99237195]
[1644222874149,54.71433932,116.51,116.43,0.25]
[1644222874352,60.71433932,116.51,116.43,0.25]
[1644222874549,60.71433932,116.51,116.41,12.28]
[1644222874751,60.71433932,116.51,116.41,12.53]
[1644222874954,61.89890575,116.51,116.41,12.53]
[1644222875351,61.89890575,116.51,116.41,18.53]
[1644222875552,61.89890575,116.51,116.41,12.53]
[1644222875752,61.89890575,116.51,116.41,12.28]
[1644222876254,64.00451665,116.51,116.4,23.2953192]
[1644222876452,1.18456643,116.5,116.4,23.2953192]
[1644222876651,1.18456643,116.5,116.4,1.92e-05]
[1644222876851,12.8862,116.48,116.4,1.92e-05]
[1644222877052,42.79596842,116.47,116.4,1.92e-05]
[1644222878052,43.04596842,116.47,116.4,1.92e-05]
[1644222878252,12.8862,116.48,116.4,1.92e-05]
[1644222878452,12.8828,116.51,116.41,12.28]
[1644222878653,4.293,116.52,116.41,71.10154313]
[1644222878856,4.293,116.52,116.42,2.94403311]
[1644222879055,4.293,116.52,116.42,39.22823311]
[1644222879253,4.293,116.52,116.43,38.09922568]
[1644222879454,4.293,116.52,116.43,52.10171566]
[1644222879656,44.51864926,116.51,116.44,1.72248998]
[1644222879855,44.51864926,116.51,116.45,45.95792514]
[1644222880264,44.51864926,116.51,116.45,46.20792514]
[1644222880461,44.51864926,116.51,116.45,0.25]
[1644222880660,44.51864926,116.51,116.44,6.0]
[1644222880859,44.51864926,116.51,116.44,6.25]
[1644222881261,44.51864926,116.51,116.44,0.25]
[1644222881462,44.51864926,116.51,116.44,6.25]
[1644222881658,44.51864926,116.51,116.44,0.25]
[1644222881858,44.51864926,116.51,116.43,44.35168975]
[1644222881859,44.51864926,116.51,116.43,44.60168975]
[1644222882060,50.51864926,116.51,116.43,44.60168975]
[1644222882259,44.51864926,116.51,116.43,44.60168975]
[1644222882859,44.51864926,116.51,116.43,50.60168975]
[1644222883259,50.51864926,116.51,116.43,50.60168975]
[1644222883759,44.51864926,116.51,116.43,50.60168975]
[1644222884362,44.51864926,116.51,116.43,6.25]
[1644222884562,44.51864926,116.51,116.43,0.25]
[1644222884864,44.51864926,116.51,116.43,6.0]
[1644222885064,44.51864926,116.51,116.42,30.2542]
[1644222885265,44.76864926,116.51,116.42,30.2542]
[1644222886562,44.76864926,116.51,116.43,44.63202653]
[1644222886762,44.76864926,116.51,116.43,44.88202653]
[1644222886962,44.76864926,116.51,116.43,50.88202653]
[1644222887865,44.76864926,116.51,116.43,6.25]
[1644222888864,44.76864926,116.51,116.43,0.25]
[1644222889065,50.76864926,116.51,116.42,30.2542]
[1644222889465,44.76864926,116.51,116.42,30.2542]
[1644222889669,50.76864926,116.51,116.42,30.2542]
[1644222889867,57.65134926,116.51,116.42,30.2542]
[1644222890066,63.65134926,116.51,116.42,30.2542]
[1644222890867,57.65134926,116.51,116.42,30.2542]
[1644222891466,57.65134926,116.51,116.43,39.18249468]
[1644222891668,57.65134926,116.51,116.43,45.18249468]
[1644222891867,63.65134926,116.51,116.43,45.43249468]
[1644222892069,57.65134926,116.51,116.43,6.25]
[1644222892268,57.65134926,116.51,116.43,0.25]
[1644222892468,63.65134926,116.51,116.43,0.25]
[1644222893069,63.65134926,116.51,116.41,70.27986557]
[1644222893268,63.40134926,116.51,116.41,70.52986557]
[1644222893468,63.40134926,116.51,116.41,72.25235555]
[1644222893668,50.51864926,116.51,116.42,1.72248998]
[1644222893871,50.51864926,116.51,116.43,36.30483579]
[1644222894278,50.51864926,116.51,116.43,38.27732577]
[1644222894472,50.51864926,116.51,116.43,44.27732577]
[1644222895073,50.51864926,116.51,116.43,38.27732577]
[1644222895473,50.51864926,116.51,116.43,44.27732577]
[1644222895874,50.51864926,116.51,116.43,42.55483579]
[1644222896074,50.51864926,116.51,116.43,36.55483579]
[1644222896276,50.51864926,116.51,116.43,38.27732577]
[1644222897180,44.51864926,116.51,116.43,0.25]
[1644222897680,44.51864926,116.51,116.41,23.7375]
[1644222897681,44.76864926,116.51,116.41,23.7375]
[1644222898287,57.65154926,116.51,116.41,23.7375]
[1644222898585,57.65154926,116.51,116.4,1.92e-05]
[1644222898586,2.1056109,116.5,116.4,1.92e-05]
[1644222898786,15.57017733,116.5,116.4,1.92e-05]
[1644222898985,1.18456643,116.49,116.4,1.92e-05]
[1644222899386,43.14219579,116.48,116.4,1.92e-05]
[1644222899588,41.92105797,116.46,116.4,1.92e-05]
[1644222900188,44.02666887,116.46,116.4,1.92e-05]
[1644222900400,56.30666887,116.46,116.4,1.92e-05]
[1644222900699,57.4912353,116.46,116.4,1.92e-05]
[1644222900904,63.4912353,116.46,116.4,1.92e-05]
[1644222901100,12.8901,116.45,116.4,1.92e-05]
[1644222901301,25.1701,116.45,116.4,1.92e-05]
[1644222903203,12.8901,116.45,116.4,1.92e-05]
[1644222904203,13.1401,116.45,116.4,1.92e-05]
[1644222904604,19.1401,116.45,116.4,1.92e-05]
[1644222905006,6.25,116.45,116.4,1.92e-05]
[1644222905206,12.8867,116.47,116.4,1.92e-05]
[1644222906306,93.31136784,116.49,116.4,1.92e-05]
[1644222906307,106.19596784,116.49,116.4,1.92e-05]
[1644222906509,58.37686784,116.49,116.4,1.92e-05]
[1644222906707,64.37686784,116.49,116.4,1.92e-05]
[1644222907108,12.8846,116.49,116.4,1.92e-05]
[1644222907307,5.47756643,116.52,116.4,14.00253675]
[1644222907510,5.47756643,116.52,116.41,23.1675]
[1644222907707,4.293,116.52,116.41,35.6975]
[1644222907907,10.293,116.52,116.41,35.6975]
[1644222908108,10.293,116.52,116.41,76.16929858]
[1644222908109,36.29510979,116.51,116.41,76.16929858]
[1644222908309,36.29510979,116.51,116.41,82.16929858]
[1644222908508,36.29510979,116.51,116.41,76.16929858]
[1644222908710,36.54510979,116.51,116.41,76.16929858]
[1644222909310,36.54510979,116.51,116.41,82.16929858]
[1644222909511,36.54510979,116.51,116.41,76.16929858]
[1644222910010,36.54510979,116.51,116.41,82.16929858]
[1644222911414,36.29510979,116.51,116.41,83.89181613]
[1644222912415,42.29510979,116.51,116.41,83.89181613]
[1644222912616,36.29510979,116.51,116.41,83.89181613]
[1644222912815,42.29510979,116.51,116.41,83.89181613]
[1644222913015,36.54510979,116.51,116.41,43.42001755]
[1644222913417,36.29510979,116.51,116.41,43.42001755]
[1644222913615,36.54510979,116.51,116.41,43.42001755]
[1644222914018,36.54510979,116.51,116.41,41.6975]
[1644222914716,36.54510979,116.51,116.41,35.6975]
[1644222915516,42.54510979,116.51,116.41,35.6975]
[1644222915717,42.54510979,116.51,116.42,35.33094129]
[1644222916219,42.54510979,116.51,116.42,35.58094129]
[1644222917018,42.29510979,116.51,116.42,35.58094129]
[1644222917220,42.29510979,116.51,116.42,55.58345884]
[1644222917221,36.29510979,116.51,116.42,55.58345884]
[1644222919719,36.29510979,116.51,116.42,53.86094129]
[1644222920823,36.29510979,116.51,116.42,18.28]
[1644222921023,36.29510979,116.51,116.42,12.28]
[1644222921224,36.29510979,116.51,116.41,23.1675]
[1644222921425,36.29510979,116.51,116.41,29.1675]
[1644222922023,49.17810979,116.51,116.41,29.1675]
[1644222922223,36.29510979,116.51,116.41,43.17001755]
[1644222922424,36.29510979,116.51,116.41,95.99156068]
[1644222922825,36.29510979,116.51,116.41,96.24156068]
[1644222923425,36.29510979,116.51,116.41,95.02001755]
[1644222923823,36.29510979,116.51,116.41,43.42001755]
[1644222924027,36.29510979,116.51,116.41,43.17001755]
[1644222924631,36.29510979,116.51,116.41,41.4475]
[1644222925825,42.29510979,116.51,116.41,41.4475]
[1644222926026,36.29510979,116.51,116.41,41.4475]
[1644222926727,36.29510979,116.51,116.41,41.6975]
[1644222926926,49.17790979,116.51,116.41,41.6975]
[1644222927127,55.17790979,116.51,116.41,29.4175]
[1644222927727,55.17790979,116.51,116.41,6.25]
[1644222927928,56.36247622,116.51,116.41,6.25]
[1644222928227,58.46808712,116.51,116.41,6.25]
[1644222928428,70.74808712,116.51,116.41,6.25]
[1644222928629,1.18456643,116.5,116.41,6.25]
[1644222928829,12.8877,116.48,116.4,1.92e-05]
[1644222929032,40.18124902,116.47,116.4,1.92e-05]
[1644222929430,46.18124902,116.47,116.4,1.92e-05]
[1644222930132,12.8899,116.45,116.4,1.92e-05]
[1644222931740,13.1399,116.45,116.4,1.92e-05]
[1644222936063,19.1399,116.45,116.4,1.92e-05]
[1644222937963,18.8899,116.45,116.4,1.92e-05]
[1644222939565,14.07046643,116.48,116.4,1.92e-05]
[1644222939766,1.18456643,116.5,116.4,1.72807478]
[1644222939966,1.18456643,116.51,116.4,1.72807478]
[1644222940168,5.47756643,116.52,116.4,20.25807478]
[1644222940369,38.8771503,116.51,116.41,58.90165836]
[1644222940566,38.8771503,116.51,116.41,64.90165836]
[1644222940767,38.8771503,116.51,116.42,1.72805558]
[1644222941168,38.8771503,116.51,116.42,1.97805558]
[1644222942871,38.8771503,116.51,116.42,7.97805558]
[1644222943073,45.1271503,116.51,116.41,29.0498]
[1644222943272,45.1271503,116.51,116.41,23.0498]
[1644222943472,45.1271503,116.51,116.41,29.0498]
[1644222943671,45.1271503,116.51,116.41,24.77785558]
[1644222943870,44.8771503,116.51,116.41,24.77785558]
[1644222944071,44.8771503,116.51,116.41,30.77785558]
[1644222944273,44.8771503,116.51,116.41,31.02785558]
[1644222944674,38.8771503,116.51,116.41,31.02785558]
[1644222947779,39.1271503,116.51,116.41,31.02785558]
[1644222949185,38.8771503,116.51,116.41,31.02785558]
[1644222949584,44.8771503,116.51,116.41,30.77785558]
[1644222949785,59.8654612,116.51,116.4,1.92e-05]
[1644222949984,72.1454612,116.51,116.4,1.92e-05]
[1644222950186,70.0398503,116.51,116.4,1.72807478]
[1644222950585,70.0398503,116.51,116.4,45.05088133]
[1644222950985,70.0398503,116.51,116.4,43.32282575]
[1644222951190,70.0398503,116.51,116.41,23.5794]
[1644222951387,70.0398503,116.51,116.41,25.30745558]
[1644222951892,38.8771503,116.51,116.42,1.72805558]
[1644222952085,39.1271503,116.51,116.42,1.72805558]
[1644222952285,39.1271503,116.51,116.42,1.97805558]
[1644222952585,38.8771503,116.51,116.42,1.97805558]
[1644222953006,38.8771503,116.51,116.43,1.72805558]
[1644222953210,38.8771503,116.51,116.44,35.79380732]
[1644222953407,44.8771503,116.51,116.44,35.79380732]
[1644222953606,38.8771503,116.51,116.44,37.7718629]
[1644222954206,38.8771503,116.51,116.44,0.25]
[1644222954609,44.8771503,116.51,116.41,12.28]
[1644222954808,44.8771503,116.51,116.43,0.25]
[1644222955608,6.0,116.51,116.44,1.72805558]
[1644222955808,4.293,116.52,116.44,1.97805558]
[1644222956009,10.293,116.52,116.44,1.97805558]
[1644222956608,4.293,116.52,116.45,1.72805558]
[1644222956808,4.293,116.52,116.46,12.28]
[1644222957012,1.18456643,116.57,116.46,12.28]
[1644222957208,1.18456643,116.58,116.47,1.72805558]
[1644222957410,1.18456643,116.59,116.47,14.00805558]
[1644222957609,43.88532239,116.58,116.48,44.26148939]
[1644222957809,43.88532239,116.58,116.48,44.51148939]
[1644222958010,43.88532239,116.58,116.48,50.51148939]
[1644222958411,49.88532239,116.58,116.48,6.25]
[1644222958713,49.88532239,116.58,116.48,7.97805558]
[1644222959010,49.88532239,116.58,116.48,1.97805558]
[1644222959213,49.88532239,116.58,116.48,0.25]
[1644222959614,49.88532239,116.58,116.47,46.8097]
[1644222959615,64.86613329,116.58,116.47,46.8097]
[1644222959813,66.05069972,116.58,116.47,46.8097]
[1644222960114,63.94508882,116.58,116.47,48.53775558]
[1644222960316,64.19508882,116.58,116.47,48.53775558]
[1644222960915,64.19508882,116.58,116.45,12.28]
[1644222961119,1.18456643,116.57,116.45,18.53]
[1644222961414,12.8794,116.54,116.45,18.53]
[1644222961615,12.8794,116.54,116.45,20.25805558]
[1644222961814,47.52682409,116.53,116.45,20.25805558]
[1644222962015,47.52682409,116.53,116.45,14.00805558]
[1644222962714,47.52682409,116.53,116.44,47.4854]
[1644222962715,60.40762409,116.53,116.44,22.5828]
[1644222962915,60.40762409,116.53,116.44,6.0]
[1644222963114,60.40762409,116.53,116.42,1.72805558]
[1644222963515,60.40762409,116.53,116.42,40.19522165]
[1644222963715,60.40762409,116.53,116.42,40.44522165]
[1644222963916,60.40762409,116.53,116.43,1.72805558]
[1644222964315,60.40762409,116.53,116.43,1.97805558]
[1644222964516,60.40762409,116.53,116.43,7.97805558]
[1644222964716,60.40762409,116.53,116.44,1.72805558]
[1644222965217,60.40762409,116.53,116.44,1.97805558]
[1644222965620,60.40762409,116.53,116.44,7.97805558]
[1644222965821,60.40762409,116.53,116.44,1.97805558]
[1644222966120,66.40762409,116.53,116.44,1.97805558]
[1644222966420,60.65762409,116.53,116.44,1.97805558]
[1644222966620,60.65762409,116.53,116.44,0.25]
[1644222966821,60.65762409,116.53,116.42,73.99716607]
[1644222967020,60.65762409,116.53,116.42,79.99716607]
[1644222968223,66.65762409,116.53,116.42,79.99716607]
[1644222968421,60.65762409,116.53,116.42,79.99716607]
[1644222969222,66.65762409,116.53,116.42,79.99716607]
[1644222969423,60.65762409,116.53,116.42,79.99716607]
[1644222969723,66.65762409,116.53,116.42,79.99716607]
[1644222969924,60.65762409,116.53,116.42,79.99716607]
[1644222971125,66.40762409,116.53,116.42,79.99716607]
[1644222971325,60.40762409,116.53,116.42,79.99716607]
[1644222972326,47.52682409,116.53,116.42,131.59716607]
[1644222972527,47.52682409,116.53,116.42,141.22958501]
[1644222972729,47.52682409,116.53,116.43,1.22154313]
[1644222972927,47.52682409,116.53,116.44,63.88]
[1644222973126,47.52682409,116.53,116.44,78.29087581]
[1644222973326,47.52682409,116.53,116.44,78.54087581]
[1644222973727,47.52682409,116.53,116.44,103.47507581]
[1644222973929,47.52682409,116.53,116.45,12.8744]
[1644222974129,38.94956643,116.57,116.46,55.33293252]
[1644222974329,1.18456643,116.58,116.47,75.9283]
[1644222974529,1.18456643,116.58,116.49,51.6]
[1644222974731,1.18456643,116.6,116.5,36.6083]
[1644222974930,1.18456643,116.61,116.5,70.93205139]
[1644222975132,45.95009646,116.61,116.51,38.6571134]
[1644222975332,45.95009646,116.61,116.52,12.28]
[1644222975630,45.95009646,116.61,116.52,35.8692]
[1644222975831,45.95009646,116.61,116.52,36.1192]
[1644222976832,130.0,116.6,116.47,14.47209028]
[1644222977035,1.18456643,116.57,116.45,36.24684563]
[1644222977235,12.28,116.56,116.41,1.22154313]
[1644222977434,1.18456643,116.55,116.41,12.28]
[1644222977735,6.0,116.55,116.41,65.10154313]
[1644222977937,48.8125,116.57,116.43,1.22154313]
[1644222978135,18.8767,116.56,116.44,25.1557]
[1644222978337,38.03904917,116.55,116.44,63.7572733]
[1644222978536,38.03904917,116.55,116.44,69.7572733]
[1644222978736,38.03904917,116.55,116.44,70.0072733]
[1644222979037,38.03904917,116.55,116.46,42.46535513]
[1644222979236,38.03904917,116.55,116.46,54.99535513]
[1644222979436,38.03904917,116.55,116.46,60.99535513]
[1644222980138,44.03904917,116.55,116.46,60.99535513]
[1644222980739,44.03904917,116.55,116.46,54.99535513]
[1644222980940,44.03904917,116.55,116.48,42.8960941]
[1644222981139,12.8767,116.56,116.48,42.8960941]
[1644222981340,6.0,116.56,116.49,1.72805558]
[1644222981743,6.0,116.58,116.49,7.97805558]
[1644222981941,6.0,116.58,116.49,26.49905558]
[1644222982144,44.10066643,116.61,116.49,26.49905558]
[1644222982145,45.5250956,116.6,116.5,39.57981179]
[1644222982343,45.5250956,116.6,116.5,39.82981179]
[1644222982543,51.5250956,116.6,116.5,39.82981179]
[1644222982746,51.5250956,116.6,116.51,1.72805558]
[1644222982945,64.3973956,116.6,116.52,46.88508454]
[1644222983346,64.3973956,116.6,116.52,48.86314012]
[1644222984553,64.3973956,116.6,116.52,1.97805558]
[1644222984753,64.3973956,116.6,116.52,0.25]
[1644222984754,64.6473956,116.6,116.52,0.25]
[1644222984956,80.21757293,116.6,116.52,0.25]
[1644222985154,1.18456643,116.59,116.48,1.72805558]
[1644222985353,12.8751,116.58,116.48,1.72805558]
[1644222985555,45.12228952,116.57,116.49,47.04196061]
[1644222985953,51.12228952,116.57,116.49,48.77001619]
[1644222986671,51.12228952,116.57,116.5,0.3231301]
[1644222988275,63.99838952,116.57,116.5,0.3231301]